fUST/lending_fUST_20260109
["ID","MTS","AMOUNT","RATE_DAILY","PERIOD"]
[401033961,1767889872172,-500.0,0.00028493,5]
[401033962,1767889872182,-510.49,0.00028493,5]
[401033963,1767889872191,-500.65,0.00028493,5]
[401033964,1767889872200,-500.0,0.00028493,5]
[401033965,1767889872210,-4093.0,0.00028493,5]
[401033966,1767889872219,-260.41422347,0.00028493,5]
[401033967,1767889872229,-500.0,0.00028493,5]
[401033968,1767889872238,-151.0,0.00028493,7]
[401033969,1767889872248,-151.0,0.00028493,7]
[401033970,1767889872258,-500.0,0.00028493,5]
[401033971,1767889872269,-1439.873322,0.00028493,7]
[401033972,1767889872279,-1439.873322,0.00028493,7]
[401033973,1767889872289,-1439.873322,0.00028493,7]
[401033974,1767889872299,-1439.873322,0.00028493,7]
[401033975,1767889872309,-500.0,0.00028493,5]
[401033976,1767889872319,-202.11019331,0.00028493,5]
[401033977,1767889872328,-500.0,0.00028493,5]
[401033978,1767889872339,-500.0,0.00028493,5]
[401033979,1767889872350,-500.0,0.00028493,5]
[401033980,1767889872362,-500.0,0.00028493,5]
[401033981,1767889872371,-500.0,0.00028493,5]
[401033982,1767889872381,-9194.49,0.00028493,3]
[401033983,1767889872391,-757.340513,0.00028493,7]
[401033984,1767889872401,-151.0,0.00028493,7]
[401033985,1767889872411,-757.340513,0.00028493,7]
[401033986,1767889872421,-757.340513,0.00028493,7]
[401033987,1767889872430,-192.36531113,0.00028493,5]
[401033988,1767889872439,-2464.53,0.00028493,5]
[401033989,1767889872449,-341.324064,0.00028493,7]
[401033990,1767889872459,-500.0,0.00028493,5]
[401033991,1767889872468,-757.340513,0.00028493,7]
[401033992,1767889872477,-341.324064,0.00028493,7]
[401033993,1767889872488,-341.324064,0.00028493,7]
[401033994,1767889872498,-341.324064,0.00028493,7]
[401033995,1767889872507,-497.96063553,0.00028493,5]
[401033996,1767889872517,-354.88862789,0.00028493,5]
[401033997,1767889872527,-516.37187019,0.00028493,5]
[401033998,1767889872536,-500.0,0.00028493,5]
[401033999,1767889872546,-500.0,0.00028493,5]
[401034000,1767889872556,-529.50434127,0.00028493,5]
[401034001,1767889872566,-500.0,0.00028493,5]
[401034002,1767889872575,-508.61609156,0.00028493,5]
[401034003,1767889872584,-500.0,0.00028493,5]
[401034004,1767889872593,-500.0,0.00028493,5]
[401034005,1767889872603,-500.0,0.00028493,5]
[401034006,1767889872613,-1606.22,0.00028493,5]
[401034007,1767889872623,-500.0,0.00028493,5]
[401034008,1767889872637,-500.0,0.00028493,5]
[401034009,1767889872647,-511.32249122,0.00028493,5]
[401034010,1767889872657,-500.0,0.00028493,5]
[401034011,1767889872667,-500.0,0.00028493,5]
[401034012,1767889872677,-500.0,0.00028493,5]
[401034013,1767889872689,-500.0,0.00028493,5]
[401034014,1767889872700,-503.89092582,0.00028493,5]
[401034015,1767889872709,-500.0,0.00028493,5]
[401034016,1767889872719,-500.0,0.00028493,5]
[401034017,1767889872730,-850.0,0.00028493,5]
[401034018,1767889872739,-1345.80901206,0.00028493,5]
[401034019,1767889872749,-900.0,0.00028493,5]
[401034020,1767889872759,-350.0,0.00028493,5]
[401034021,1767889872769,-350.0,0.00028493,5]
[401034022,1767889872778,-875.15,0.000285,7]
[401034023,1767889872787,-298517.30082199,0.000285,7]
[401034024,1767889872797,-193.8322625,0.00028521,30]
[401034025,1767889872807,-153.0,0.00028521,30]
[401034026,1767889872816,-153.0,0.00028521,30]
[401034027,1767889872826,-153.0,0.00028521,30]
[401034028,1767889872835,-2579.17784983,0.00028598,2]
[401034029,1767889872844,-753.9630538,0.00028631,30]
[401034030,1767889872854,-2373.26906487,0.00028652,2]
[401034031,1767889872864,-461.0,0.00028684,2]
[401034032,1767889872873,-163.27,0.000287,7]
[401034033,1767889872883,-164.69,0.000287,7]
[401034034,1767889872893,-512.54,0.000287,2]
[401034035,1767889872902,-4000.0,0.0002876,5]
[401034036,1767889872913,-19137.07550739,0.0002876,2]
[401034037,1767889872923,-1200.0,0.00028761,7]
[401034038,1767889872932,-500.0,0.00028767,5]
[401034039,1767889872942,-500.0,0.00028767,5]
[401034040,1767889872951,-534.72,0.00028767,5]
[401034041,1767889872960,-575.68431835,0.00028767,5]
[401034042,1767889872970,-500.0,0.00028767,2]
[401034043,1767889872981,-298.53347752,0.00028767,5]
[401034044,1767889872991,-503.79600458,0.00028767,5]
[401034045,1767889873000,-503.55979008,0.00028767,5]
[401034046,1767889873010,-500.50983515,0.00028767,5]
[401034047,1767889873020,-517.59042391,0.00028767,5]
[401034048,1767889873030,-692.57,0.00028767,5]
[401034049,1767889873039,-500.0,0.00028767,5]
[401034050,1767889873049,-500.0,0.00028767,5]
[401034051,1767889873058,-500.0,0.00028767,5]
[401034052,1767889873067,-500.0,0.00028767,5]
[401034053,1767889873077,-500.0,0.00028767,5]
[401034054,1767889873087,-194.01488051,0.00028767,5]
[401034055,1767889873096,-500.0,0.00028767,2]
[401034056,1767889873106,-500.0,0.00028767,5]
[401034057,1767889873115,-500.0,0.00028767,5]
[401034058,1767889873124,-187.05517944,0.00028767,5]
[401034059,1767889873134,-377.07888585,0.00028767,5]
[401034060,1767889873143,-500.0,0.00028767,5]
[401034061,1767889873152,-1000.0,0.00028767,2]
[401034062,1767889873161,-500.0,0.00028767,5]
[401034063,1767889873171,-500.0,0.00028767,5]
[401034064,1767889873180,-568.88675922,0.00028767,5]
[401034065,1767889873190,-331.75781953,0.00028767,5]
[401034066,1767889873200,-506.17937664,0.00028767,5]
[401034067,1767889873209,-500.0,0.00028767,5]
[401034068,1767889873218,-364.95780871,0.00028767,5]
[401034069,1767889873228,-500.0,0.00028767,5]
[401034070,1767889873237,-374.31912928,0.00028767,5]
[401034071,1767889873247,-517.63,0.00028767,5]
[401034072,1767889873257,-500.0,0.00028767,5]
[401034073,1767889873266,-2443.5,0.00028767,5]
[401034074,1767889873276,-500.0,0.00028767,5]
[401034075,1767889873285,-500.0,0.00028767,5]
[401034076,1767889873295,-1284.28,0.00028767,5]
[401034077,1767889873304,-497.02634688,0.00028767,5]
[401034078,1767889873312,-500.0,0.00028767,5]
[401034079,1767889873322,-500.0,0.00028767,5]
[401034080,1767889873331,-151.0,0.00028767,7]
[401034081,1767889873340,-500.0,0.00028767,5]
[401034082,1767889873350,-617.23,0.00028767,5]
[401034083,1767889873360,-151.0,0.00028767,7]
[401034084,1767889873370,-500.0,0.00028767,5]
[401034085,1767889873379,-500.0,0.00028767,5]
[401034086,1767889873388,-363.35591482,0.00028767,5]
[401034087,1767889873398,-1000.0,0.00028767,2]
[401034088,1767889873407,-151.0,0.00028767,7]
[401034089,1767889873416,-151.0,0.00028767,7]
[401034090,1767889873427,-151.0,0.00028767,7]
[401034091,1767889873436,-151.0,0.00028767,7]
[401034092,1767889873445,-151.0,0.00028767,7]
[401034093,1767889873454,-500.0,0.00028767,5]
[401034094,1767889873463,-408.61009396,0.00028767,5]
[401034095,1767889873473,-200.0,0.00028767,5]
[401034096,1767889873481,-500.0,0.00028767,5]
[401034097,1767889873491,-533.53284146,0.00028767,5]
[401034098,1767889873500,-500.0,0.00028767,5]
[401034099,1767889873511,-500.0,0.00028767,5]
[401034100,1767889873521,-500.0,0.00028767,5]
[401034101,1767889873531,-600.7,0.00028767,5]
[401034102,1767889873541,-172.705914,0.00028767,7]
[401034103,1767889873550,-172.705914,0.00028767,7]
[401034104,1767889873672,-500.0,0.00028767,5]
[401034105,1767889873683,-388.092813,0.00028767,7]
[401034106,1767889873692,-172.705914,0.00028767,7]
[401034107,1767889873703,-172.705914,0.00028767,7]
[401034108,1767889873712,-500.0,0.00028767,5]
[401034109,1767889873722,-388.092813,0.00028767,7]
[401034110,1767889873731,-388.092813,0.00028767,7]
[401034111,1767889873740,-388.092813,0.00028767,7]
[401034112,1767889873750,-578.92853948,0.00028767,5]
[401034113,1767889873759,-500.0,0.00028767,5]
[401034114,1767889873768,-500.0,0.00028767,5]
[401034115,1767889873777,-500.0,0.00028767,5]
[401034116,1767889873787,-500.0,0.00028767,5]
[401034117,1767889873797,-500.0,0.00028767,5]
[401034118,1767889873806,-563.95,0.00028767,5]
[401034119,1767889873815,-500.0,0.00028767,5]
[401034120,1767889873824,-500.0,0.00028767,5]
[401034121,1767889873834,-500.0,0.00028767,2]
[401034122,1767889873843,-500.0,0.00028767,5]
[401034123,1767889873853,-500.0,0.00028767,5]
[401034124,1767889873863,-289.5635015,0.00028767,5]
[401034125,1767889873874,-500.0,0.00028767,5]
[401034126,1767889873884,-187.18163485,0.00028767,5]
[401034127,1767889873893,-1899.8,0.00028767,5]
[401034128,1767889873902,-500.0,0.00028767,5]
[401034129,1767889873912,-500.0,0.00028767,5]
[401034130,1767889873921,-510.49,0.00028767,5]
[401034131,1767889873930,-500.65,0.00028767,5]
[401034132,1767889873940,-500.0,0.00028767,5]
[401034133,1767889873950,-4093.0,0.00028767,5]
[401034134,1767889873960,-500.0,0.00028767,5]
[401034135,1767889873969,-2049.07,0.00028767,4]
[401034136,1767889873979,-508.44688378,0.00028767,5]
[401034137,1767889873989,-506.07370966,0.00028767,5]
[401034138,1767889873999,-500.0,0.00028767,5]
[401034139,1767889874009,-500.0,0.00028767,5]
[401034140,1767889874019,-501.67518024,0.00028767,5]
[401034141,1767889874029,-513.45199538,0.00028767,5]
[401034142,1767889874039,-9194.49,0.00028767,3]
[401034143,1767889874048,-2464.53,0.00028767,5]
[401034144,1767889874058,-500.0,0.00028767,5]
[401034145,1767889874067,-204.06495255,0.00028767,5]
[401034146,1767889874076,-312.22825573,0.00028767,5]
[401034147,1767889874086,-506.56048113,0.00028767,5]
[401034148,1767889874095,-500.0,0.00028767,5]
[401034149,1767889874104,-500.0,0.00028767,5]
[401034150,1767889874114,-500.0,0.00028767,5]
[401034151,1767889874124,-1606.22,0.00028767,5]
[401034152,1767889874134,-500.0,0.00028767,5]
[401034153,1767889874143,-311.35117465,0.00028767,5]
[401034154,1767889874153,-500.0,0.00028767,5]
[401034155,1767889874164,-500.0,0.00028767,5]
[401034156,1767889874173,-500.0,0.00028767,5]
[401034157,1767889874183,-500.0,0.00028767,5]
[401034158,1767889874193,-500.0,0.00028767,5]
[401034159,1767889874203,-372.34334348,0.00028767,5]
[401034160,1767889874213,-564.738811,0.00028767,60]
[401034161,1767889874222,-5439.05122134,0.00028793,2]
[401034162,1767889874233,-385205.11347953,0.000288,2]
[401034163,1767889874454,-330.79864556,0.000288,2]
[401034164,1767889874466,-8133.70840359,0.000288,2]
[401034165,1767889874683,-1150.89249518,9.466e-05,2]
[401034166,1767889874693,-250.0,0.0002724,2]
[401034167,1767889874703,-500.0,0.00027397,5]
[401034168,1767889874713,-500.0,0.00027945,5]
[401034169,1767889874723,-500.0,0.00028219,5]
[401034170,1767889874732,-500.0,0.00028493,5]
[401034171,1767889874742,-500.0,0.00028767,5]
[401034172,1767889874752,-32377.90750482,0.000288,2]
[401034173,1767889875087,-388.49180522,0.00025754,2]
[401034174,1767889875118,-151.0,0.00024658,2]
[401034175,1767889875127,-111.50819478,0.00025754,2]
[401034176,1767889875137,-470.01097669,0.00025891,2]
[401034177,1767889875149,-29.98902331,0.00025891,2]
[401034178,1767889875159,-250.0,0.0002724,2]
[401034179,1767889875169,-250.0,0.0002724,2]
[401034180,1767889875178,-250.0,0.0002724,2]
[401034181,1767889875187,-250.0,0.0002724,2]
[401034182,1767889875197,-250.0,0.0002724,2]
[401034183,1767889875207,-250.0,0.0002724,2]
[401034184,1767889875217,-250.0,0.0002724,2]
[401034185,1767889875227,-304.08381326,0.0002724,2]
[401034186,1767889875236,-346.62362618,0.00027397,5]
[401034187,1767889875246,-500.0,0.00027397,5]
[401034188,1767889875255,-500.0,0.00027397,5]
[401034189,1767889875266,-500.0,0.00027397,5]
[401034190,1767889875276,-500.0,0.00027397,5]
[401034191,1767889875285,-501.23768161,0.00027397,5]
[401034192,1767889875296,-232.75439003,0.00027671,5]
[401034193,1767889875306,-1418.54767994,0.000288,2]
[401034194,1767889875381,-303.06667103,0.000189,2]
[401034195,1767889875391,-198.65431073,0.00019089,2]
[401034196,1767889879042,160.84,6.456e-05,2]
[401034197,1767889879451,201.05,6.725e-05,2]
[401034198,1767889879860,241.26,6.994e-05,2]
[401034199,1767889880250,281.47,7.263e-05,2]
[401034200,1767889880770,321.68,7.532e-05,2]
[401034201,1767889881060,361.89,7.801e-05,2]
[401034202,1767889881456,402.1,8.07e-05,2]
[401034203,1767889903851,413.218,9.277e-05,2]
[401034206,1767889949045,173.74,8.531e-05,2]
[401034207,1767889949461,198.56,8.847e-05,2]
[401034208,1767889949861,223.38,9.163e-05,2]
[401034223,1767890281010,356.53,5.994e-05,2]
[401034224,1767890281332,356.53,5.994e-05,2]
[401034225,1767890281660,356.51,5.994e-05,2]
[401034226,1767890284824,154.47518581,7.755e-05,2]
[401034227,1767890503771,330.575,9.277e-05,2]
[401034726,1767890746441,-3000.0,0.00037349,120]
[401034727,1767890746471,-223.41447741,0.00037349,120]
[401034728,1767890746501,-1673.50724448,0.00037349,35]
[401034729,1767890746530,-206.08896168,0.00037349,120]
[401034730,1767890746560,-231.20272226,0.00037349,31]
[401034731,1767890746592,-202.35534307,0.00037349,30]
[401034732,1767890746623,-1869.63103381,0.00037349,60]
[401034733,1767890746651,-1395.8894274,0.00037349,120]
[401034734,1767890746680,-1001.7062437,0.00037349,120]
[401034735,1767890746707,-181.02193737,0.00037349,30]
[401034736,1767890746733,-2044.59320502,0.00037349,120]
[401034737,1767890746760,-448.39385451,0.00037349,120]
[401034738,1767890746786,-1998.67459776,0.00037349,30]
[401034739,1767890746991,-452.9280223,0.00037349,60]
[401034740,1767890747023,-190.639971,0.00037349,30]
[401034741,1767890747052,-1000.0,0.00037349,30]
[401034742,1767890747081,-899.96854288,0.00037349,120]
[401034743,1767890747109,-1085.78643155,0.00037349,120]
[401034744,1767890747138,-513.0776506,0.00037349,120]
[401034745,1767890747167,-221.52633975,0.00037349,30]
[401034746,1767890747194,-1289.16512802,0.00037349,120]
[401034747,1767890747224,-280.95203816,0.00037349,30]
[401034748,1767890747253,-360.00241602,0.00037349,30]
[401034749,1767890747282,-257.15110362,0.00037349,30]
[401034750,1767890747312,-1691.0,0.00037349,31]
[401034751,1767890747341,-200.0,0.00037349,120]
[401034752,1767890747369,-1979.31277032,0.00037349,120]
[401034753,1767890747399,-5048.19033104,0.00037349,30]
[401034754,1767890747429,-305.69186943,0.00037349,120]
[401034755,1767890747457,-161.08022094,0.00037349,120]
[401034756,1767890747486,-2841.93593472,0.00037349,120]
[401034757,1767890747517,-15397.0,0.00037349,30]
[401034758,1767890747546,-32904.02912941,0.00037349,120]
[401034759,1767890747576,-200.0,0.00037349,120]
[401034760,1767890747604,-17784.58235337,0.00037349,120]
[401034761,1767890747632,-157.20132933,0.00037349,120]
[401034762,1767890747660,-150.49550146,0.00037349,120]
[401034763,1767890747688,-181.19966811,0.00037349,120]
[401034764,1767890747716,-6071.85652073,0.00037349,30]
[401034765,1767890747743,-223.0,0.00037349,120]
[401034766,1767890747772,-1283.44836401,0.00037349,120]
[401034767,1767890747799,-280.94843644,0.00037349,30]
[401034768,1767890747828,-641.724182,0.00037349,120]
[401034769,1767890747861,-198435.26356734,0.00037349,30]
[401034770,1767890747892,-13450.44076058,0.00037349,120]
[401034771,1767890747920,-20903.71739734,0.00037349,120]
[401034772,1767890747949,-99999.999999,0.00037349,30]
[401034773,1767890747977,-10503.40737527,0.00037349,30]
[401034774,1767890748005,-190963.20114743,0.00037349,30]
[401034775,1767890748034,-2600.71458752,0.00037349,31]
[401034776,1767890748063,-339.8696286,0.00037349,31]
[401034777,1767890748091,-3117.1745808,0.00037349,120]
[401034778,1767890748119,-4620.05864372,0.00037349,30]
[401034779,1767890748148,-47029.07914606,0.00037349,60]
[401034780,1767890748176,-2637.68481836,0.00037349,30]
[401034781,1767890748203,-4975.93038383,0.00037349,30]
[401034782,1767890748232,-86064.52,0.00037349,30]
[401034783,1767890748262,-27542.89742532,0.00037349,90]
[401034784,1767890748292,-320.862091,0.00037349,120]
[401034785,1767890748321,-907.0,0.00037349,120]
[401034786,1767890748352,-160.4310455,0.00037349,120]
[401034787,1767890748385,-8302.0,0.00037349,120]
[401034788,1767890748414,-998.139817,0.00037349,30]
[401034789,1767890748443,-5448.8,0.00037349,120]
[401034790,1767890748471,-1332.04708684,0.00037349,120]
[401034791,1767890748500,-509.2788953,0.00037349,30]
[401034792,1767890748528,-829.03859953,0.00037349,120]
[401034793,1767890748556,-200.90332982,0.00037349,120]
[401034794,1767890748586,-1393.67704274,0.00037349,64]
[401034795,1767890748615,-217.03686211,0.00037349,120]
[401034796,1767890748643,-1586.87387684,0.00037349,120]
[401034797,1767890748673,-1683.01179987,0.00037349,120]
[401034798,1767890748700,-5190.0,0.00037349,120]
[401034799,1767890748726,-199.195242,0.00037349,120]
[401034800,1767890748755,-209.39853977,0.00037349,35]
[401034801,1767890748781,-210.5226355,0.00037349,30]
[401034802,1767890748811,-883.22178794,0.00037349,30]
[401034803,1767890748839,-10938.15141012,0.00037349,120]
[401034804,1767890748871,-1450.48045675,0.00037349,120]
[401034805,1767890748900,-158.77218301,0.00037349,60]
[401034806,1767890748928,-2943.499999,0.00037349,30]
[401034807,1767890748953,-968.57782,0.00037349,60]
[401034808,1767890748982,-426.84,0.00037349,120]
[401034809,1767890749011,-180719.20085932,0.00037349,30]
[401034810,1767890749039,-12596.67201292,0.00037349,30]
[401034811,1767890749067,-20083.9249043,0.00037349,30]
[401034812,1767890749094,-1917418.10893797,0.00037349,30]
[401034813,1767890756689,-1001156.33517538,0.00037349,30]
[401034814,1767890756718,-395445.02877687,0.00037349,30]
[401034815,1767890756747,-1603398.63604775,0.00037349,120]
[401034816,1767890760143,-988749.67395225,0.00037349,120]
[401034817,1767890760175,-306079.74,0.00037349,120]
[401034818,1767890760204,-680.48008361,0.00037349,120]
[401034819,1767890760242,-11790.0,0.00037349,120]
[401034820,1767890760280,-1758.86544757,0.00037349,120]
[401034821,1767890760310,-94999.999999,0.00037349,30]
[401034822,1767890760353,-201426.07123841,0.00037349,30]
[401034823,1767890760384,-4063.74788224,0.00037349,30]
[401034824,1767890760415,-369108.89800702,0.00037349,120]
[401034825,1767890760444,-254.55822411,0.00037349,120]
[401034826,1767890760474,-376.57740322,0.00037349,30]
[401034827,1767890760505,-184.94297882,0.00037349,120]
[401034828,1767890760537,-184.94297882,0.00037349,120]
[401034829,1767890760568,-156.35104135,0.00037349,120]
[401034830,1767890760600,-184.94297882,0.00037349,120]
[401034831,1767890760632,-156.35104135,0.00037349,120]
[401034832,1767890760664,-156.35104135,0.00037349,120]
[401034833,1767890760696,-156.35104135,0.00037349,120]
[401034834,1767890760727,-156.35104135,0.00037349,120]
[401034835,1767890760758,-156.35104135,0.00037349,120]
[401034836,1767890760791,-156.35104135,0.00037349,120]
[401034837,1767890760823,-156.35104135,0.00037349,120]
[401034838,1767890760855,-243.68363741,0.00037349,120]
[401034839,1767890760884,-243.68363741,0.00037349,120]
[401034840,1767890760914,-243.6836374,0.00037349,120]
[401034841,1767890760946,-334.09559887,0.00037349,120]
[401034842,1767890760975,-194.24590261,0.00037349,120]
[401034843,1767890761004,-165.45639049,0.00037349,120]
[401034844,1767890761034,-334.09559887,0.00037349,120]
[401034845,1767890761062,-194.24590261,0.00037349,120]
[401034846,1767890761090,-165.45639049,0.00037349,120]
[401034847,1767890761117,-334.09559887,0.00037349,120]
[401034848,1767890761144,-165.45639049,0.00037349,120]
[401034849,1767890761172,-334.09559887,0.00037349,120]
[401034850,1767890761200,-334.09559887,0.00037349,120]
[401034851,1767890761228,-334.09559887,0.00037349,120]
[401034852,1767890761256,-334.09559887,0.00037349,120]
[401034853,1767890761286,-334.09559887,0.00037349,120]
[401034854,1767890761316,-334.09559887,0.00037349,120]
[401034855,1767890761345,-334.09559887,0.00037349,120]
[401034856,1767890761376,-334.09559887,0.00037349,120]
[401034857,1767890761407,-334.09559887,0.00037349,120]
[401034858,1767890761436,-334.09559887,0.00037349,120]
[401034859,1767890761468,-334.09559887,0.00037349,120]
[401034860,1767890761508,-334.09559887,0.00037349,120]
[401034861,1767890761542,-500.0,0.00037349,120]
[401034862,1767890761775,-238.415405,0.00037349,31]
[401034863,1767890761805,-151.0,0.00037349,31]
[401034864,1767890761834,-151.0,0.00037349,31]
[401034865,1767890761862,-171.590843,0.00037349,31]
[401034866,1767890761891,-4496.829359,0.00037349,31]
[401034867,1767890761918,-4496.829359,0.00037349,31]
[401034868,1767890761951,-4496.829359,0.00037349,31]
[401034869,1767890761985,-4496.829359,0.00037349,31]
[401034870,1767890762013,-4496.829359,0.00037349,31]
[401034871,1767890762041,-4496.829359,0.00037349,31]
[401034872,1767890762068,-4496.829359,0.00037349,31]
[401034873,1767890762095,-4496.829359,0.00037349,31]
[401034874,1767890762123,-4496.829359,0.00037349,31]
[401034875,1767890762151,-4496.829359,0.00037349,31]
[401034876,1767890762179,-4496.829359,0.00037349,31]
[401034877,1767890762206,-4496.829359,0.00037349,31]
[401034878,1767890762233,-4496.829359,0.00037349,31]
[401034879,1767890762263,-4496.829359,0.00037349,31]
[401034880,1767890762292,-151.0,0.00037349,31]
[401034881,1767890762325,-4496.829359,0.00037349,31]
[401034882,1767890762353,-4496.829359,0.00037349,31]
[401034883,1767890762382,-227.192077,0.00037349,31]
[401034884,1767890762409,-4496.829359,0.00037349,31]
[401034885,1767890762438,-4496.829359,0.00037349,31]
[401034886,1767890762467,-4496.829359,0.00037349,31]
[401034887,1767890762493,-4496.82935,0.00037349,31]
[401034888,1767890762521,-151.0,0.00037349,31]
[401034889,1767890762549,-151.0,0.00037349,31]
[401034890,1767890762576,-151.0,0.00037349,31]
[401034891,1767890762602,-151.0,0.00037349,31]
[401034892,1767890762630,-151.0,0.00037349,31]
[401034893,1767890762659,-151.0,0.00037349,31]
[401034894,1767890762688,-151.0,0.00037349,31]
[401034895,1767890762716,-151.0,0.00037349,31]
[401034896,1767890762745,-294.56746,0.00037349,31]
[401034897,1767890762772,-699.163556,0.00037349,31]
[401034898,1767890762800,-699.163556,0.00037349,31]
[401034899,1767890762826,-699.163556,0.00037349,31]
[401034900,1767890762854,-699.163556,0.00037349,31]
[401034901,1767890762883,-699.163556,0.00037349,31]
[401034902,1767890762910,-699.163556,0.00037349,31]
[401034903,1767890762938,-699.163556,0.00037349,31]
[401034904,1767890762965,-3077.0,0.00037349,60]
[401034905,1767890762993,-699.163556,0.00037349,31]
[401034906,1767890763021,-699.163556,0.00037349,31]
[401034907,1767890763048,-699.163556,0.00037349,31]
[401034908,1767890763074,-699.163556,0.00037349,31]
[401034909,1767890763101,-699.163556,0.00037349,31]
[401034910,1767890763128,-699.163556,0.00037349,31]
[401034911,1767890763158,-699.163556,0.00037349,31]
[401034912,1767890763187,-699.163556,0.00037349,31]
[401034913,1767890763217,-699.163556,0.00037349,31]
[401034914,1767890763247,-699.163556,0.00037349,31]
[401034915,1767890763276,-699.163556,0.00037349,31]
[401034916,1767890763307,-699.163556,0.00037349,31]
[401034917,1767890763338,-699.163551,0.00037349,31]
[401034918,1767890763368,-151.0,0.00037349,31]
[401034919,1767890763398,-151.0,0.00037349,31]
[401034920,1767890763431,-151.0,0.00037349,31]
[401034921,1767890763460,-151.0,0.00037349,31]
[401034922,1767890763489,-151.0,0.00037349,31]
[401034923,1767890763524,-151.0,0.00037349,31]
[401034924,1767890763556,-151.0,0.00037349,31]
[401034925,1767890763586,-151.0,0.00037349,31]
[401034926,1767890763616,-151.0,0.00037349,31]
[401034927,1767890763646,-151.858704,0.00037349,31]
[401034928,1767890763675,-293.642612,0.00037349,31]
[401034929,1767890763704,-274.902011,0.00037349,31]
[401034930,1767890763733,-274.902011,0.00037349,31]
[401034931,1767890763763,-274.902011,0.00037349,31]
[401034932,1767890763792,-274.902011,0.00037349,31]
[401034933,1767890763820,-274.902011,0.00037349,31]
[401034934,1767890763850,-274.902011,0.00037349,31]
[401034935,1767890763880,-274.902011,0.00037349,31]
[401034936,1767890763911,-274.902011,0.00037349,31]
[401034937,1767890763940,-300.26582625,0.00037349,120]
[401034938,1767890763969,-274.902011,0.00037349,31]
[401034939,1767890763999,-274.902011,0.00037349,31]
[401034940,1767890764033,-274.902011,0.00037349,31]
[401034941,1767890764064,-274.902011,0.00037349,31]
[401034942,1767890764093,-274.902011,0.00037349,31]
[401034943,1767890764125,-274.902011,0.00037349,31]
[401034944,1767890764154,-274.902011,0.00037349,31]
[401034945,1767890764185,-274.902011,0.00037349,31]
[401034946,1767890764338,274.902011,0.00037349,31]
[401034947,1767890764374,25699.32223728,0.00037349,30]
[401034948,1767890764412,905.1830894,0.00037349,30]
[401034949,1767890764474,274.902011,0.00037349,31]
[401034950,1767890764525,274.902011,0.00037349,31]
[401034951,1767890764737,274.902013,0.00037349,31]
[401034952,1767890764812,4278.63454544,0.00037349,30]
[401034953,1767890765465,1000.0,0.00037349,30]
[401034954,1767890771659,388.092813,0.00037349,31]
[401034955,1767890772114,388.092813,0.00037349,31]
[401034956,1767890858674,10000.01,9.364e-05,2]
[401034957,1767890858698,10000.01,9.364e-05,2]
[401034958,1767890858723,10000.01,9.364e-05,2]
[401034959,1767890858747,10000.01,9.364e-05,2]
[401034960,1767890858771,10000.01,9.364e-05,2]
[401034961,1767890858795,10000.01,9.364e-05,2]
[401034962,1767890858818,10000.01,9.364e-05,2]
[401034963,1767890858841,10000.01,9.364e-05,2]
[401034964,1767890858869,10000.01,9.364e-05,2]
[401034965,1767890858898,10000.01,9.364e-05,2]
[401034966,1767890858929,899999.9,9.364e-05,2]
[401034980,1767890993692,-200.0,0.00011204,20]
[401034981,1767891007295,10000.01,9.362e-05,2]
[401034982,1767891007320,10000.01,9.362e-05,2]
[401034983,1767891007346,10000.01,9.362e-05,2]
[401034984,1767891007372,10000.01,9.362e-05,2]
[401034985,1767891007398,10000.01,9.362e-05,2]
[401034986,1767891007424,10000.01,9.362e-05,2]
[401034987,1767891007451,10000.01,9.362e-05,2]